bitfinex/quotes_ETHUSD_20260306
["timestamp","ask_amount","ask_price","bid_price","bid_amount"]
[1772779415265,0.002,2073.7,2073.1,1.59220064]
[1772779416392,0.002,2073.5,2073.1,1.59220064]
[1772779416886,0.002,2073.7,2073.2,1.59220064]
[1772779417289,1.65928381,2073.7,2073.2,2.79806142]
[1772779417787,0.002,2073.7,2073.3,1.59220064]
[1772779419299,0.002,2073.7,2073.5,1.59220064]
[1772779419487,0.002,2073.7,2073.3,2.79797249]
[1772779419870,0.002,2073.7,2073.4,1.59220064]
[1772779421406,0.002,2073.7,2073.4,2.7979413]
[1772779421594,0.002,2073.7,2073.5,1.59220064]
[1772779422495,1.65728381,2074.8,2073.7,1.59220064]
[1772779423402,1.65728381,2074.6,2073.9,1.59220064]
[1772779423613,3.33928381,2074.6,2073.9,1.59220064]
[1772779424012,1.65728381,2074.5,2073.9,1.59220064]
[1772779424819,1.20499349,2074.7,2073.9,1.59220064]
[1772779425107,0.32693897,2075.2,2074.3,1.59220064]
[1772779425298,0.32693897,2075.2,2074.5,1.20510966]
[1772779425299,0.32693897,2075.1,2074.5,1.20510966]
[1772779425497,3.18899144,2075.1,2074.3,5.59220064]
[1772779425707,1.53170763,2075.1,2074.4,1.59220064]
[1772779427505,1.53170763,2075.1,2074.5,1.20510966]
[1772779427701,0.32693897,2075.1,2074.5,2.7973103]
[1772779427902,1.53171469,2075.1,2074.5,1.59220064]
[1772779428711,0.002,2074.9,2074.5,1.59220064]
[1772779429720,0.32693897,2074.8,2074.5,1.59220064]
[1772779431327,0.32693897,2074.7,2074.3,1.20521913]
[1772779431537,0.32693897,2074.7,2074.3,2.79741977]
[1772779432102,1.2068842,2074.9,2074.3,2.79741977]
[1772779432336,0.32693897,2074.8,2074.3,2.79741977]
[1772779432632,0.32693897,2074.8,2074.4,1.59220064]
[1772779433110,0.32693897,2074.7,2074.4,1.59220064]
[1772779434534,0.32693897,2074.7,2074.2,2.63726357]
[1772779434535,0.32693897,2074.6,2073.9,1.59220064]
[1772779434738,1.98422278,2074.6,2073.9,1.59220064]
[1772779435825,1.98422278,2074.6,2074.0,2.79760083]
[1772779435826,3.18931011,2074.6,2074.0,2.79760083]
[1772779436015,3.18931011,2074.6,2074.0,1.59220064]
[1772779436217,1.65728381,2074.5,2074.0,1.59220064]
[1772779436903,1.65728381,2074.5,2073.8,2.79767776]
[1772779437233,0.32693897,2074.4,2073.9,1.59220064]
[1772779438138,1.53210713,2074.4,2073.9,2.79764625]
[1772779438438,0.32693897,2074.4,2074.0,1.59220064]
[1772779439055,1.65728381,2074.3,2073.8,1.59220064]
[1772779439526,1.65728381,2074.3,2073.8,2.79771708]
[1772779440129,0.32693897,2074.2,2073.8,1.59220064]
[1772779440329,0.32693897,2074.2,2073.8,2.79771442]
[1772779441857,1.94179397,2074.2,2073.8,1.20551606]
[1772779442371,0.32693897,2074.2,2073.8,1.20551606]
[1772779442938,0.32693897,2074.1,2073.8,1.20551606]
[1772779443123,2.82002728,2074.4,2074.0,0.001]
[1772779443325,1.614855,2074.3,2074.0,0.001]
[1772779447075,1.614855,2074.5,2074.0,0.001]
[1772779447975,1.614855,2074.7,2074.0,1.58411402]
[1772779449174,1.614855,2074.7,2074.1,1.20534207]
[1772779449380,1.614855,2074.7,2074.2,1.58311402]
[1772779449901,0.002,2074.9,2074.2,1.58311402]
[1772779450172,0.002,2074.9,2074.3,1.58311402]
[1772779451155,0.002,2074.9,2074.4,1.58311402]
[1772779451548,0.002,2074.9,2074.5,1.20510966]
[1772779452153,1.616855,2074.9,2074.5,1.20510966]
[1772779452855,1.616855,2074.9,2074.4,1.58311402]
[1772779453692,1.616855,2074.9,2074.4,2.78822944]
[1772779453998,3.299855,2074.9,2074.5,1.58311402]
[1772779454197,4.50474412,2074.9,2074.3,3.87117853]
[1772779454405,1.614855,2074.8,2074.2,3.49330165]
[1772779454568,1.614855,2074.8,2074.2,2.78835116]
[1772779454771,1.683,2074.7,2074.2,2.78835116]
[1772779454988,3.297855,2074.7,2074.2,2.78835116]
[1772779455699,1.614855,2074.6,2074.2,1.20523714]
[1772779457180,1.614855,2074.6,2074.2,3.49330165]
[1772779458783,3.298855,2074.6,2074.2,3.49330165]
[1772779459902,1.614855,2074.5,2074.2,2.28806451]
[1772779460200,1.614855,2074.5,2074.1,1.20533184]
[1772779460790,1.614855,2074.5,2074.0,1.20635598]
[1772779461109,1.614855,2074.5,2074.0,2.78947]
[1772779463291,3.298855,2074.5,2074.0,2.78947]
[1772779463890,3.298855,2074.5,2074.0,1.20635598]
[1772779463891,1.614855,2074.4,2074.0,1.20635598]
[1772779464115,1.614855,2074.4,2074.0,0.001]
[1772779465116,1.614855,2074.3,2074.0,0.001]
[1772779466619,1.614855,2074.2,2074.0,0.001]
[1772779467217,2.60952646,2075.5,2075.1,1.58311402]
[1772779467417,2.60952646,2075.5,2074.0,0.001]
[1772779467418,2.60952646,2075.5,2074.9,1.58311402]
[1772779468010,2.60952646,2075.5,2075.0,3.87491012]
[1772779468323,2.60952646,2075.5,2075.0,2.2917961]
[1772779468615,4.22438146,2075.5,2075.1,1.20476121]
[1772779469042,4.22438146,2075.5,2074.9,3.49666631]
[1772779469043,5.42891433,2075.5,2074.9,3.49666631]
[1772779469216,1.614855,2075.4,2074.9,3.49666631]
[1772779469416,1.614855,2075.4,2074.8,5.07979007]
[1772779469910,1.614855,2075.4,2074.7,3.49674181]
[1772779470327,1.614855,2075.4,2074.7,3.49677274]
[1772779470538,1.62497414,2075.2,2074.7,1.20497664]
[1772779471344,0.32478503,2075.8,2074.7,1.20497664]
[1772779471345,0.08403361,2075.9,2075.2,1.57731271]
[1772779471645,0.08403361,2075.9,2075.5,1.57731271]
[1772779471842,0.002,2075.8,2075.5,1.57731271]
[1772779472317,0.002,2075.8,2075.3,1.57731271]
[1772779472517,0.002,2075.8,2075.4,1.20458706]
[1772779473628,0.002,2075.8,2075.4,2.78189977]
[1772779474948,0.002,2075.8,2075.4,1.20458706]
[1772779475638,0.002,2075.8,2075.3,1.20460501]
[1772779477132,1.62697414,2075.8,2075.3,1.20460501]
[1772779477334,3.27997414,2075.8,2075.2,1.20467177]
[1772779477535,1.62497414,2075.7,2075.2,1.20467177]
[1772779480026,1.66,2075.6,2075.2,1.20467177]
[1772779480226,1.62497414,2075.7,2075.2,1.20467177]
[1772779480447,1.66,2075.6,2075.2,1.20467177]
[1772779481725,3.28497414,2075.6,2075.1,1.20474868]
[1772779482945,1.665,2075.6,2075.1,1.57731271]
[1772779483144,1.665,2075.5,2075.1,1.57731271]
[1772779484253,1.665,2075.5,2075.4,0.001]
[1772779484453,1.667,2075.5,2075.4,0.001]
[1772779484961,1.668,2075.5,2075.4,0.001]
[1772779486256,0.002,2075.6,2075.4,0.001]
[1772779488642,1.673,2075.6,2075.4,0.001]
[1772779488847,3.29797414,2075.6,2075.4,0.001]
[1772779491450,1.673,2075.5,2075.4,0.001]
[1772779491774,0.002,2075.6,2075.4,0.001]
[1772779491951,1.673,2075.5,2075.4,0.001]
[1772779492153,1.675,2075.6,2075.4,0.001]
[1772779492478,0.002,2075.6,2075.4,1.57831271]
[1772779492649,0.002,2075.6,2075.4,0.001]
[1772779493165,1.62497414,2075.8,2075.4,0.001]
[1772779493367,1.62497414,2075.7,2075.4,0.001]
[1772779494758,1.62497414,2075.7,2075.1,0.001]
[1772779496384,1.62497414,2075.5,2075.1,0.001]
[1772779496584,1.675,2075.4,2075.1,0.001]
[1772779496974,1.676,2075.4,2075.1,0.001]
[1772779497175,1.62497414,2075.7,2075.1,1.57831271]
[1772779497360,1.676,2075.5,2075.1,1.57831271]
[1772779497560,1.62497414,2075.7,2075.1,1.57831271]
[1772779497777,1.676,2075.6,2075.1,1.57831271]
[1772779497981,1.676,2075.6,2075.2,1.57731271]
[1772779498180,1.676,2075.6,2075.3,1.20564511]
[1772779498582,0.002,2075.5,2075.3,1.20564511]
[1772779499675,0.002,2075.5,2075.3,0.001]
[1772779500508,1.68608365,2075.5,2075.3,0.001]
[1772779501400,1.68608365,2075.5,2075.1,0.001]
[1772779502307,1.68408365,2075.7,2075.1,1.65063457]
[1772779502499,1.68408365,2075.7,2075.2,2.85433773]
[1772779502500,1.678,2075.6,2075.2,2.85433773]
[1772779503214,3.36208365,2075.6,2075.1,1.2057359]
[1772779503402,3.36208365,2075.6,2075.1,0.001]
[1772779503605,1.68408365,2075.5,2075.1,0.001]
[1772779503783,1.68408365,2075.5,2075.1,1.20575782]
[1772779504106,1.68408365,2075.5,2075.1,0.001]
[1772779504509,4.56767259,2075.4,2075.1,0.001]
[1772779505322,3.36308365,2075.4,2075.1,0.001]
[1772779506846,4.56768761,2075.4,2075.1,0.001]
[1772779507021,2.88872876,2075.3,2075.1,0.001]
[1772779507225,1.68408365,2075.2,2075.0,0.001]
[1772779509860,2.88881893,2075.2,2075.0,0.001]
[1772779510761,1.68408365,2075.2,2075.0,0.001]
[1772779510969,1.2045552,2075.5,2075.0,1.65063457]
[1772779511178,1.682,2075.4,2075.0,1.65063457]
[1772779511381,1.68408365,2075.8,2075.0,1.65063457]
[1772779511538,2.06701361,2075.7,2075.0,1.65063457]
[1772779511737,1.682,2075.7,2075.0,1.65063457]
[1772779511940,3.36608365,2075.7,2075.0,1.65063457]
[1772779512641,3.36608365,2075.7,2075.2,0.001]
[1772779512867,0.002,2075.4,2075.2,0.001]
[1772779513060,0.002,2075.4,2075.2,1.20570316]
[1772779514578,0.002,2075.4,2075.2,2.85533773]
[1772779518580,1.68608365,2075.4,2075.2,0.001]
[1772779519086,1.20659096,2075.4,2075.0,1.20577578]
[1772779519282,1.68408365,2075.3,2075.0,0.001]
[1772779521563,1.68408365,2075.1,2075.0,0.001]
[1772779522154,4.81870742,2075.3,2075.0,0.001]
[1772779522155,2.88877338,2075.3,2075.0,0.001]
[1772779523383,1.68408365,2075.2,2075.0,0.001]
[1772779523591,2.88884486,2075.1,2075.0,0.001]
[1772779524592,1.68408365,2075.0,2074.7,0.001]
[1772779524801,3.36908365,2074.9,2074.7,0.001]
[1772779525188,1.685,2074.9,2074.7,0.001]
[1772779525502,1.68408365,2074.8,2074.3,0.001]
[1772779525700,2.88907714,2074.7,2074.3,0.001]
[1772779527197,1.68408365,2074.9,2074.6,0.001]
[1772779527384,3.37108365,2074.8,2074.6,0.001]
[1772779527585,4.57603701,2074.8,2074.6,0.001]
[1772779529119,1.68408365,2074.7,2074.6,0.001]
[1772779529622,1.687,2074.8,2074.6,0.001]
[1772779529826,4.57602869,2074.8,2074.6,0.001]
[1772779531430,4.53285026,2074.8,2074.6,0.001]
[1772779531629,1.64090522,2074.7,2074.6,0.001]
[1772779531927,2.84589871,2074.7,2074.6,0.001]
[1772779533333,1.64090522,2074.7,2074.6,0.001]
[1772779533814,2.84589871,2074.7,2074.6,0.001]
[1772779536406,2.84589871,2074.7,2074.3,0.001]
[1772779536407,1.64090522,2074.4,2074.3,0.001]
[1772779536611,1.687,2074.4,2074.3,0.001]
[1772779537334,3.32790522,2074.4,2074.3,0.001]
[1772779538837,4.53307297,2074.4,2074.3,0.001]
[1772779539139,3.32790522,2074.4,2074.3,0.001]
[1772779539746,2.89216775,2074.4,2074.3,0.001]
[1772779540107,1.687,2074.4,2074.3,0.001]
[1772779540311,2.89216775,2074.4,2074.3,0.001]
[1772779541323,1.64090522,2074.3,2074.0,1.64535835]
[1772779541523,2.89616775,2074.4,2074.0,1.64535835]
[1772779541735,4.53707297,2074.4,2074.0,1.64535835]
[1772779542734,1.691,2074.3,2074.0,2.85075696]
[1772779543105,1.691,2074.3,2074.0,1.64535835]
[1772779544354,1.691,2074.3,2074.0,2.85075509]
[1772779544528,1.691,2074.3,2074.0,6.46678152]
[1772779544732,1.691,2074.3,2074.0,2.85074679]
[1772779545048,1.693,2074.2,2074.0,2.85074881]
[1772779545618,1.693,2074.2,2074.0,1.64535835]
[1772779545821,1.693,2074.2,2074.0,2.85075646]
[1772779546334,1.693,2074.2,2074.0,1.64535835]
[1772779546535,1.693,2074.2,2074.0,2.85075777]
[1772779547426,1.693,2074.2,2074.0,1.64535835]
[1772779547637,1.693,2074.2,2074.0,0.001]
[1772779548558,1.693,2074.2,2074.0,1.64535835]
[1772779550334,1.693,2074.2,2074.0,2.85075661]
[1772779550946,1.693,2074.2,2074.0,1.64535835]
[1772779551348,1.693,2074.2,2074.0,2.85075789]
[1772779551853,1.693,2074.2,2074.0,1.64535835]
[1772779552039,1.693,2074.2,2074.0,2.85075666]
[1772779552247,1.693,2074.2,2074.0,1.64535835]
[1772779553646,0.002,2074.1,2074.0,1.64535835]
[1772779555159,0.002,2074.1,2074.0,0.001]
[1772779555346,0.002,2074.1,2074.0,1.64535835]
[1772779555864,1.701,2074.1,2074.0,1.64535835]
[1772779556764,0.002,2074.3,2074.2,1.64235835]
[1772779560844,1.703,2074.3,2074.2,1.64235835]
[1772779561044,1.703,2074.3,2074.1,1.59119791]
[1772779561256,3.3233045,2074.3,2074.0,0.001]
[1772779561666,1.6203045,2074.2,2074.0,0.001]
[1772779562956,2.82559397,2074.2,2074.0,0.001]
[1772779563738,1.61495309,2074.1,2074.0,0.001]
[1772779564066,3.31795309,2074.1,2074.0,0.001]
[1772779565660,4.52329516,2074.1,2074.0,0.001]
[1772779565971,0.002,2074.3,2074.0,1.59219791]
[1772779566153,1.704,2074.2,2074.0,1.59219791]
[1772779566678,1.704,2074.2,2074.0,2.79758754]
[1772779567063,0.002,2074.1,2074.0,2.79758754]
[1772779569296,0.002,2074.1,2074.0,2.7975981]
[1772779569465,1.708,2074.1,2074.0,2.7975981]
[1772779569793,1.706,2074.2,2074.1,1.59119791]
[1772779570219,0.002,2074.3,2074.1,1.59119791]
[1772779570683,1.708,2074.3,2074.1,1.59119791]
[1772779570874,1.708,2074.3,2074.0,1.20640019]
[1772779570875,1.708,2074.3,2074.2,1.59119791]
[1772779575005,0.002,2074.6,2074.5,1.5892479]
[1772779575802,0.002,2074.7,2074.5,1.5892479]
[1772779577415,0.002,2074.7,2074.6,1.20505157]
[1772779577800,0.002,2074.7,2074.6,2.79429947]
[1772779578520,0.002,2075.0,2074.7,1.5892479]
[1772779578834,0.004,2075.0,2074.7,1.5892479]
[1772779579432,0.004,2075.0,2074.8,2.79418331]
[1772779579593,0.002,2075.0,2074.8,2.79418331]
[1772779580231,1.71,2075.0,2074.8,2.79418331]
[1772779580526,1.54666443,2075.2,2074.8,2.79418331]
[1772779580705,1.71,2075.1,2074.8,2.79418331]
[1772779581223,1.71,2075.1,2074.8,1.5892479]
[1772779581425,1.71,2075.1,2074.8,2.79417892]
[1772779581658,1.709,2075.1,2074.8,2.79417892]
[1772779582629,1.54666443,2075.2,2074.9,1.5892479]
[1772779582630,0.002,2075.0,2074.9,1.5892479]
[1772779582855,1.707,2075.1,2074.9,1.5892479]
[1772779583154,1.709,2075.1,2074.9,1.5892479]
[1772779583525,1.709,2075.1,2074.9,2.79411893]
[1772779584232,1.709,2075.1,2074.8,1.20490655]
[1772779584432,0.002,2075.0,2074.8,2.79415445]
[1772779586363,1.5674592,2075.0,2074.6,1.5892479]
[1772779586746,2.002,2075.0,2074.6,1.5892479]
[1772779587878,1.33843224,2075.0,2074.2,4.8220842]
[1772779588084,1.709,2075.2,2074.3,1.5892479]
[1772779588757,3.3680215,2075.2,2074.5,1.5892479]
[1772779589261,1.709,2075.2,2074.5,1.5892479]
[1772779589452,1.6590215,2075.1,2074.5,1.5892479]
[1772779590066,1.709,2075.2,2074.5,1.5892479]
[1772779590787,1.709,2075.2,2074.7,1.51895557]
[1772779590992,3.33364514,2075.2,2074.7,1.51995557]
[1772779591156,0.002,2075.0,2074.7,1.51995557]
[1772779592795,0.002,2075.0,2074.9,1.51895557]
[1772779592996,0.002,2075.0,2074.7,2.72494274]
[1772779592997,1.62664514,2075.0,2074.7,2.72494274]
[1772779593212,1.62664514,2075.0,2074.7,0.001]
[1772779593897,1.707,2075.0,2074.8,1.51895557]
[1772779595096,0.002,2075.2,2074.9,1.51895557]
[1772779595097,1.62664514,2075.2,2074.9,1.51895557]
[1772779595265,1.62664514,2075.2,2074.7,2.72491374]
[1772779595469,1.62664514,2075.2,2074.8,1.51895557]
[1772779595666,0.002,2075.2,2074.8,1.51895557]
[1772779596293,1.62664514,2075.2,2074.8,1.51895557]
[1772779597274,2.83137544,2075.2,2074.8,1.51895557]
[1772779597474,1.62664514,2075.2,2074.8,2.72388662]
[1772779597767,1.20671003,2075.2,2074.8,2.72388662]
[1772779597967,1.20672106,2075.2,2074.8,1.51895557]
[1772779598169,0.002,2075.2,2074.9,1.51895557]
[1772779598585,1.20673328,2075.2,2074.7,2.72494893]
[1772779598793,2.83137842,2075.2,2074.7,2.72494893]
[1772779599170,1.62464514,2075.1,2074.7,2.72494893]
[1772779600900,0.002,2075.2,2074.7,2.72494893]
[1772779601091,1.62664514,2075.2,2074.7,2.72494893]
[1772779601398,2.83139516,2075.2,2074.7,2.72494893]
[1772779601900,2.83139516,2075.2,2074.7,1.51995557]
[1772779602196,1.62464514,2075.1,2074.7,0.001]
[1772779603290,2.82946441,2075.0,2074.7,0.001]
[1772779603695,1.693,2075.0,2074.9,0.001]
[1772779604027,3.31764514,2075.0,2074.9,0.001]
[1772779604997,0.002,2075.1,2074.9,1.51995557]
[1772779605795,0.002,2075.1,2074.9,2.72481083]
[1772779606010,0.002,2075.1,2074.9,1.51995557]
[1772779606191,0.002,2075.2,2075.0,1.51895557]
[1772779607675,0.002,2075.2,2075.0,2.72373575]
[1772779608581,0.002,2075.2,2075.1,1.51895557]
[1772779609002,1.699,2075.4,2075.1,1.51895557]
[1772779609476,1.62464514,2075.3,2074.9,2.72478679]
[1772779609878,1.62464514,2075.3,2074.9,1.2058567]
[1772779610103,1.62464514,2075.3,2074.9,2.72481227]
[1772779611009,0.002,2075.4,2075.0,1.51895557]
[1772779611178,1.701,2075.4,2075.0,1.51895557]
[1772779611375,4.81765452,2075.7,2074.9,1.2058567]
[1772779611376,1.62464514,2075.7,2075.1,1.51895557]
[1772779611716,1.20447099,2075.6,2075.1,2.72365982]
[1772779612219,2.90347099,2075.6,2075.1,2.72365982]
[1772779613327,4.52811613,2075.6,2075.1,2.72365982]
[1772779614111,1.699,2075.5,2075.1,2.72365982]
[1772779614408,1.62464514,2075.4,2074.9,2.72479866]
[1772779615083,2.82911613,2075.6,2075.0,1.51895557]
[1772779615284,1.7,2075.4,2075.0,1.51895557]
[1772779616021,2.82911613,2075.6,2075.1,1.20476121]
[1772779616186,1.7,2075.4,2075.1,1.20476121]
[1772779616508,1.62464514,2075.6,2075.1,2.72371678]
[1772779616693,3.32464514,2075.6,2075.2,1.51895557]
[1772779617295,1.62464514,2075.6,2075.2,1.51895557]
[1772779617494,1.7,2075.6,2075.2,1.51895557]
[1772779617892,1.9488645,2075.8,2075.2,1.51995557]
[1772779618203,3.153227,2075.8,2075.3,1.20464511]
[1772779618782,0.002,2075.4,2075.2,2.72461334]
[1772779619290,0.002,2075.4,2075.2,2.72463311]
[1772779619811,0.002,2075.4,2075.2,1.20569922]
[1772779620203,0.002,2075.4,2075.2,0.001]
[1772779620386,0.002,2075.4,2075.2,1.53759871]
[1772779621323,0.002,2075.4,2075.2,0.001]
[1772779623117,0.32421936,2075.8,2075.2,1.53759871]
[1772779623315,2.60830377,2075.8,2075.2,1.53759871]
[1772779623520,0.58308441,2075.7,2075.2,1.53759871]
[1772779624622,2.02521936,2075.8,2075.4,1.53659871]
[1772779624623,0.32421936,2075.8,2075.4,1.53659871]
[1772779625018,0.99701285,2074.4,2073.9,1.53659871]
[1772779625196,1.56355097,2074.7,2074.0,1.53759871]
[1772779625391,1.56355097,2074.7,2074.0,0.001]
[1772779625601,5.186661,2074.6,2074.0,2.74299507]
[1772779625797,2.88005337,2074.5,2074.3,4.61114602]
[1772779626009,2.88005337,2074.4,2074.3,4.61114602]
[1772779626219,1.56929053,2074.7,2074.3,4.61114602]
[1772779626564,1.56929053,2074.7,2074.2,1.20628184]
[1772779626565,1.56929053,2074.5,2074.2,0.001]
[1772779626822,4.08371616,2074.4,2074.2,4.61214602]
[1772779627011,1.20516775,2074.4,2074.2,4.61214602]
[1772779627414,4.44621469,2074.3,2073.8,0.001]
[1772779627607,2.87692416,2074.2,2073.8,0.001]
[1772779627808,2.77445828,2074.4,2073.8,0.001]
[1772779628126,2.87772854,2074.3,2073.8,0.001]
[1772779628330,2.87772854,2074.2,2073.8,0.001]
[1772779628506,2.87772854,2074.2,2073.7,0.001]
[1772779628507,4.44701907,2074.1,2073.7,0.001]
[1772779628821,4.08317852,2074.0,2073.7,0.001]
[1772779629027,2.87772854,2073.9,2073.7,0.001]
[1772779629223,2.7745584,2074.3,2073.7,0.001]
[1772779629425,4.4424261,2074.2,2073.7,0.001]
[1772779629631,3.5118755,2074.3,2073.7,0.001]
[1772779629632,4.4424261,2074.1,2073.7,0.001]
[1772779629934,2.87313557,2074.0,2073.7,0.001]
[1772779630107,2.87313557,2073.9,2073.3,1.53659871]
[1772779630324,1.56929053,2074.0,2073.3,2.74240411]
[1772779630643,1.20551644,2073.8,2073.3,2.74240479]
[1772779631316,2.77461962,2074.2,2073.4,1.53659871]
[1772779631540,2.86849313,2074.1,2073.4,1.53659871]
[1772779632148,1.56929053,2074.2,2073.3,1.20580608]
[1772779632149,2.77448866,2074.4,2073.9,0.001]
[1772779632443,2.86671153,2074.3,2073.9,0.001]
[1772779632731,2.77457449,2074.2,2073.9,0.001]
[1772779632932,1.20528396,2074.2,2073.9,0.001]
[1772779633934,1.20526814,2074.3,2073.9,0.001]
[1772779635135,1.20503905,2074.7,2073.9,1.53759871]
[1772779635436,2.86409687,2074.6,2073.9,1.53759871]
[1772779636339,1.20503905,2074.7,2073.9,1.53759871]
[1772779636940,2.77426001,2074.8,2074.1,1.53659871]
[1772779637110,1.20496948,2074.8,2074.2,1.53659871]
[1772779638645,2.77411038,2075.0,2074.2,1.53659871]
[1772779639544,1.20480075,2075.1,2074.4,1.53659871]
[1772779639842,6.39027323,2075.2,2074.4,1.53659871]
[1772779639843,2.77604043,2075.2,2074.4,1.53659871]
[1772779640344,2.8631339,2075.1,2074.4,1.53659871]
[1772779640724,2.77604043,2075.2,2074.4,1.53659871]
[1772779642250,2.77604043,2075.2,2074.5,2.74170837]
[1772779643326,1.56929053,2075.1,2074.5,2.74170837]
[1772779644025,0.002,2075.0,2074.5,2.74170837]
[1772779644446,1.20681927,2075.0,2074.5,1.53659871]
[1772779644650,1.20681927,2075.0,2074.4,1.20514404]
[1772779644651,1.56929053,2074.9,2074.4,1.20514404]
[1772779645149,1.56929053,2074.9,2074.4,1.53659871]
[1772779646027,1.56929053,2074.9,2074.2,2.74188267]
[1772779646652,1.20493541,2074.8,2074.3,1.53659871]
[1772779648430,2.77421021,2074.9,2074.3,1.53659871]
[1772779648752,2.77421021,2074.9,2074.4,1.53659871]
[1772779650950,2.77421021,2074.9,2074.4,2.74176032]
[1772779651136,2.77421021,2074.9,2074.4,1.53659871]
[1772779651332,1.56929053,2074.9,2074.4,2.74176227]
[1772779651537,1.56929053,2074.9,2074.4,1.20516356]
[1772779651737,1.56929053,2074.9,2074.5,2.0465949]
[1772779652340,2.7741724,2074.9,2074.5,2.0465949]
[1772779652725,1.20488187,2074.9,2074.5,2.0465949]
[1772779652938,3.22845561,2074.9,2074.4,2.0465949]
[1772779653137,0.002,2075.0,2074.5,2.0465949]
[1772779653338,2.87407608,2074.9,2074.5,2.0465949]
[1772779653655,2.02557374,2075.0,2074.5,2.0465949]
[1772779653830,2.87407608,2074.9,2074.5,2.0465949]
[1772779654160,2.02557374,2075.0,2074.5,2.0465949]
[1772779654330,0.002,2075.2,2074.5,2.0465949]
[1772779654534,2.87574139,2075.1,2074.5,2.0465949]
[1772779654750,0.002,2075.2,2074.5,2.0465949]
[1772779655255,3.51318267,2075.5,2074.8,2.0465949]
[1772779655256,0.002,2075.5,2074.8,2.0465949]
[1772779655444,2.02557374,2075.5,2075.0,2.0465949]
[1772779655627,0.002,2075.5,2075.0,2.0465949]
[1772779657157,0.002,2075.5,2075.2,2.0465949]
[1772779657839,0.002,2075.3,2075.2,2.0465949]
[1772779658039,0.002,2075.5,2075.2,2.0465949]
[1772779659462,0.002,2075.5,2075.2,3.25124338]
[1772779659836,0.002,2075.5,2075.3,2.0465949]
[1772779662459,0.002,2075.5,2075.1,2.0465949]
[1772779662861,0.002,2075.7,2075.0,1.20476729]
[1772779663033,0.002,2075.7,2075.1,2.0465949]
[1772779663456,0.08403361,2075.9,2075.2,2.0465949]
[1772779664056,1.20409156,2076.3,2075.4,2.0465949]
[1772779664258,1.20409156,2076.3,2075.6,2.0465949]
[1772779664665,3.2276653,2076.3,2075.6,2.0465949]
[1772779666045,3.2276653,2076.3,2075.7,3.25100786]
[1772779666246,3.2276653,2076.3,2075.7,2.0465949]
[1772779666845,2.86879602,2076.2,2075.3,2.0465949]
[1772779667050,2.02357374,2076.1,2075.5,1.639]
[1772779668155,3.22781266,2076.0,2075.5,1.639]
[1772779668352,3.22781266,2076.0,2075.5,2.84350693]
[1772779668548,3.22781266,2076.0,2075.5,3.6855949]
[1772779669370,0.002,2075.9,2075.6,2.0465949]
[1772779670072,0.002,2075.9,2075.5,1.639]
[1772779670653,0.002,2075.9,2075.5,4.89012364]
[1772779670975,0.002,2075.9,2075.6,2.0465949]
[1772779672371,1.20601885,2076.4,2075.8,2.0465949]
[1772779673264,0.002,2076.4,2075.8,2.0465949]
[1772779673468,1.2060155,2076.4,2075.8,2.0465949]
[1772779674481,1.2060155,2076.4,2075.9,1.627]
[1772779674482,3.22958924,2076.4,2075.9,1.627]
[1772779674779,2.02357374,2076.3,2075.9,1.627]
[1772779675685,1.55644004,2076.8,2076.0,2.0465949]
[1772779676050,2.02357374,2076.7,2076.0,2.0465949]
[1772779676450,2.02357374,2076.7,2076.1,1.20418091]
[1772779676451,3.2274568,2076.7,2076.1,1.20418091]
[1772779676684,3.2274568,2076.7,2076.1,3.25077581]
[1772779677874,0.35263419,2076.8,2076.2,2.0465949]
[1772779678444,1.55641376,2076.8,2076.3,1.20406492]
[1772779678649,1.55641376,2076.8,2076.3,3.25065982]
[1772779678982,3.5799875,2076.8,2076.1,3.25077581]
[1772779679682,3.5799875,2076.8,2076.1,2.0465949]
[1772779680782,1.55641234,2076.8,2076.2,2.06521797]
[1772779680979,0.35263419,2076.8,2076.2,2.06521797]
[1772779681885,3.53489971,2076.8,2076.2,2.06521797]
[1772779682059,0.002,2076.6,2076.3,1.632]
[1772779682972,0.002,2076.6,2076.3,4.90128094]
[1772779683483,0.002,2076.6,2076.3,4.90127946]
[1772779683885,0.002,2076.6,2076.3,3.69721797]
[1772779684873,0.002,2076.6,2076.3,4.90127829]
[1772779686689,0.002,2076.6,2076.3,4.90127918]
[1772779686888,2.29682106,2077.5,2076.7,2.06521797]
[1772779687091,2.87015574,2077.4,2076.7,2.06521797]
[1772779687258,1.9784879,2077.5,2076.7,2.06521797]
[1772779687768,3.22245013,2077.4,2076.7,2.06521797]
[1772779688087,5.20093803,2077.4,2076.7,2.06521797]
[1772779688287,1.2032631,2077.7,2076.6,1.20389097]
[1772779688288,1.9784879,2077.3,2076.6,1.20389097]
[1772779688488,1.9784879,2077.5,2076.7,2.06521797]
[1772779688892,1.20342736,2077.4,2076.7,3.26899728]
[1772779689072,1.20342736,2077.4,2076.8,2.06521797]
[1772779689270,3.22245013,2077.3,2076.9,3.69921797]
[1772779689463,3.22245013,2077.5,2077.0,2.06521797]
[1772779689663,0.34488823,2077.8,2077.0,2.06521797]
[1772779689886,3.56733836,2077.8,2077.0,2.06521797]
[1772779690092,0.34488823,2077.8,2077.0,2.06521797]
[1772779690364,4.81116344,2078.5,2077.0,2.06521797]
[1772779690365,1.20267474,2078.7,2077.0,2.06521797]
[1772779690678,4.93341637,2078.8,2077.0,4.21502099]
[1772779690679,1.32536958,2078.8,2077.0,4.21502099]
[1772779690874,3.1812205,2078.6,2077.5,2.06521797]
[1772779691193,1.2027326,2078.6,2077.5,2.06521797]
[1772779691365,1.2027326,2078.6,2077.7,2.06521797]
[1772779691767,1.9784879,2078.5,2077.7,2.06521797]
[1772779691989,1.9784879,2078.5,2077.6,1.635]
[1772779692578,1.9784879,2078.5,2077.6,3.70021797]
[1772779692964,1.20284834,2078.4,2077.6,3.70021797]
[1772779693293,3.18133624,2078.4,2077.6,3.70021797]
[1772779694878,3.18133624,2078.4,2077.6,2.06521797]
[1772779697094,1.20284834,2078.4,2077.6,2.06521797]
[1772779697474,1.20284834,2078.4,2077.7,2.06521797]
[1772779699199,1.20284834,2078.4,2077.8,2.06521797]